[Event "*** Titled Tuesday Blitz"]
[Site "Chess.com"]
[Date "2020.04.21"]
[Round "8"]
[White "1f3_2g41-0"]
[Black "poliplaza"]
[Result "0-1"]
[WhiteElo "2184"]
[BlackElo "2404"]
[TimeControl "180+1"]
[EndTime "11:38:25 PDT"]
[Termination "poliplaza won by checkmate"]

1. e4 {[%clk 0:03:00.9]} 1... c5 {[%clk 0:02:54.8]} 2. Nf3 {[%clk 0:03:00.9]}
2... e6 {[%clk 0:02:54.7]} 3. d4 {[%clk 0:03:00.3]} 3... cxd4 {[%clk 0:02:55.6]}
4. Nxd4 {[%clk 0:03:00.7]} 4... a6 {[%clk 0:02:56.2]} 5. Nc3 {[%clk 0:03:00.7]}
5... Qc7 {[%clk 0:02:56.7]} 6. Bd3 {[%clk 0:02:57.6]} 6... Nf6 {[%clk
0:02:56.6]} 7. O-O {[%clk 0:02:57.6]} 7... d6 {[%clk 0:02:56.8]} 8. f4 {[%clk
0:02:57.1]} 8... g6 {[%clk 0:02:57.3]} 9. Be3 {[%clk 0:02:56.6]} 9... Bg7 {[%clk
0:02:57.8]} 10. Qf3 {[%clk 0:02:53.9]} 10... O-O {[%clk 0:02:56.7]} 11. Rad1
{[%clk 0:02:53]} 11... Nbd7 {[%clk 0:02:55.2]} 12. a4 {[%clk 0:02:44]} 12... b6
{[%clk 0:02:31]} 13. e5 {[%clk 0:02:31.5]} 13... dxe5 {[%clk 0:02:30.5]} 14.
fxe5 {[%clk 0:02:08.8]} 14... Nxe5 {[%clk 0:02:28]} 15. Qxa8 {[%clk 0:02:06.3]}
15... Bb7 {[%clk 0:02:21.5]} 16. Qa7 {[%clk 0:02:01.6]} 16... Neg4 {[%clk
0:01:42.6]} 17. Bf4 {[%clk 0:01:55]} 17... e5 {[%clk 0:01:41.9]} 18. Bg3 {[%clk
0:01:48.1]} 18... Ra8 {[%clk 0:01:34.1]} 19. Qxa8+ {[%clk 0:01:34.8]} 19... Bxa8
{[%clk 0:01:35]} 20. Nf3 {[%clk 0:01:24.2]} 20... Qc5+ {[%clk 0:01:14.4]} 21.
Kh1 {[%clk 0:01:19.9]} 21... Nh5 {[%clk 0:01:09.6]} 22. Bh4 {[%clk 0:01:03.3]}
22... Bf6 {[%clk 0:00:22.8]} 23. Bxf6 {[%clk 0:00:52.4]} 23... Nhxf6 {[%clk
0:00:19.7]} 24. Rd2 {[%clk 0:00:19.9]} 24... e4 {[%clk 0:00:13]} 25. Ne1 {[%clk
0:00:05.4]} 25... exd3 {[%clk 0:00:10.8]} 26. Nxd3 {[%clk 0:00:06.3]} 26... Qh5
{[%clk 0:00:10.7]} 27. h3 {[%clk 0:00:05.6]} 27... Qxh3+ {[%clk 0:00:09.5]} 28.
Kg1 {[%clk 0:00:05.8]} 28... Qh2# {[%clk 0:00:09.6]} 0-1

[Event "*** Titled Tuesday Blitz"]
[Site "Chess.com"]
[Date "2020.04.21"]
[Round "8"]
[White "CroissantNeuf"]
[Black "szefru"]
[Result "0-1"]
[WhiteElo "2364"]
[BlackElo "2162"]
[TimeControl "180+1"]
[EndTime "11:38:25 PDT"]
[Termination "szefru won by resignation"]

1. Nf3 {[%clk 0:03:00.9]} 1... g6 {[%clk 0:02:58.4]} 2. e4 {[%clk 0:02:59.8]}
2... Nf6 {[%clk 0:02:50.4]} 3. e5 {[%clk 0:02:54.5]} 3... Nd5 {[%clk 0:02:50.4]}
4. d4 {[%clk 0:02:33.7]} 4... Bg7 {[%clk 0:02:49.3]} 5. Bc4 {[%clk 0:02:33.4]}
5... c6 {[%clk 0:02:46.7]} 6. O-O {[%clk 0:02:30.4]} 6... O-O {[%clk 0:02:45.8]}
7. Re1 {[%clk 0:02:29.1]} 7... d6 {[%clk 0:02:45.6]} 8. h3 {[%clk 0:02:28.3]}
8... dxe5 {[%clk 0:02:35.2]} 9. Nxe5 {[%clk 0:02:27.3]} 9... Nd7 {[%clk
0:02:33.9]} 10. Nf3 {[%clk 0:02:21.2]} 10... N7b6 {[%clk 0:02:32.4]} 11. Bb3
{[%clk 0:02:21.1]} 11... a5 {[%clk 0:02:25.7]} 12. c3 {[%clk 0:02:16.4]} 12...
Bf5 {[%clk 0:02:15.7]} 13. Nh4 {[%clk 0:02:08.9]} 13... Be6 {[%clk 0:02:15.1]}
14. Nd2 {[%clk 0:01:57.8]} 14... a4 {[%clk 0:02:08.2]} 15. Bc2 {[%clk 0:01:57]}
15... a3 {[%clk 0:02:08.5]} 16. Bb3 {[%clk 0:01:28.6]} 16... axb2 {[%clk
0:01:58.4]} 17. Bxb2 {[%clk 0:01:27.9]} 17... Nd7 {[%clk 0:01:41.4]} 18. Rxe6
{[%clk 0:01:20.2]} 18... fxe6 {[%clk 0:01:39.5]} 19. Qg4 {[%clk 0:01:19.6]}
19... N7f6 {[%clk 0:01:16.3]} 20. Qxe6+ {[%clk 0:01:18.2]} 20... Kh8 {[%clk
0:01:16.6]} 21. Nc4 {[%clk 0:01:11.1]} 21... Nf4 {[%clk 0:01:11]} 22. Qe3 {[%clk
0:01:00]} 22... N6d5 {[%clk 0:01:10.8]} 23. Qe4 {[%clk 0:00:55.8]} 23... e5
{[%clk 0:01:06.7]} 24. g3 {[%clk 0:00:40.6]} 24... exd4 {[%clk 0:00:57.1]} 25.
cxd4 {[%clk 0:00:31.9]} 25... Nxh3+ {[%clk 0:00:56.7]} 26. Kg2 {[%clk
0:00:27.1]} 26... Nxf2 {[%clk 0:00:53.8]} 27. Nxg6+ {[%clk 0:00:11.9]} 27...
hxg6 {[%clk 0:00:42.8]} 28. Qe6 {[%clk 0:00:06.8]} 28... Qf6 {[%clk 0:00:36.3]}
29. Qxf6 {[%clk 0:00:04.1]} 29... Rxf6 {[%clk 0:00:35.9]} 30. Ne5 {[%clk
0:00:04.3]} 30... Ne4 {[%clk 0:00:31.3]} 31. Rh1+ {[%clk 0:00:02.3]} 31... Kg8
{[%clk 0:00:31.3]} 32. a4 {[%clk 0:00:02]} 32... Rf2+ {[%clk 0:00:29.4]} 0-1

[Event "*** Titled Tuesday Blitz"]
[Site "Chess.com"]
[Date "2020.04.21"]
[Round "8"]
[White "Tapuah"]
[Black "RaphaeI"]
[Result "1-0"]
[WhiteElo "2854"]
[BlackElo "2668"]
[TimeControl "180+1"]
[EndTime "11:38:26 PDT"]
[Termination "Tapuah won by resignation"]

1. e4 {[%clk 0:03:00.9]} 1... c5 {[%clk 0:02:59.1]} 2. Nf3 {[%clk 0:03:00.3]}
2... Nc6 {[%clk 0:02:57.6]} 3. Bb5 {[%clk 0:02:59.5]} 3... g6 {[%clk 0:02:57.8]}
4. c3 {[%clk 0:02:58.5]} 4... Nf6 {[%clk 0:02:54.4]} 5. Qe2 {[%clk 0:02:58.1]}
5... Bg7 {[%clk 0:02:53.7]} 6. O-O {[%clk 0:02:57.5]} 6... O-O {[%clk
0:02:51.7]} 7. d4 {[%clk 0:02:57.2]} 7... d5 {[%clk 0:02:48.1]} 8. e5 {[%clk
0:02:56.1]} 8... Ne4 {[%clk 0:02:47.7]} 9. Rd1 {[%clk 0:02:56.7]} 9... Qb6
{[%clk 0:02:16.5]} 10. dxc5 {[%clk 0:02:52.6]} 10... Nxc5 {[%clk 0:01:57.4]} 11.
Be3 {[%clk 0:02:49.9]} 11... a6 {[%clk 0:01:56.5]} 12. Rxd5 {[%clk 0:02:12.9]}
12... Qxb5 {[%clk 0:01:50.1]} 13. Qxb5 {[%clk 0:02:10.6]} 13... axb5 {[%clk
0:01:51]} 14. Rxc5 {[%clk 0:02:10.2]} 14... b4 {[%clk 0:01:51.5]} 15. cxb4
{[%clk 0:01:56.8]} 15... Nxb4 {[%clk 0:01:49]} 16. Nc3 {[%clk 0:01:49.1]} 16...
Nd3 {[%clk 0:00:50.9]} 17. Rb5 {[%clk 0:01:42]} 17... Bg4 {[%clk 0:00:41.5]} 18.
Rxb7 {[%clk 0:01:30.1]} 18... Rfb8 {[%clk 0:00:36]} 19. Rxe7 {[%clk 0:01:17.6]}
19... Rxb2 {[%clk 0:00:30.8]} 20. Rd1 {[%clk 0:00:57.9]} 20... Nxe5 {[%clk
0:00:20.7]} 21. Ra7 {[%clk 0:00:14.5]} 21... Rc8 {[%clk 0:00:18.1]} 22. Nd5
{[%clk 0:00:12.9]} 22... Nxf3+ {[%clk 0:00:17.2]} 23. gxf3 {[%clk 0:00:12.5]}
23... Bxf3 {[%clk 0:00:18.1]} 24. Ne7+ {[%clk 0:00:12.9]} 24... Kh8 {[%clk
0:00:18.6]} 25. Nxc8 {[%clk 0:00:09.4]} 25... Bxd1 {[%clk 0:00:18.4]} 26. Rd7
{[%clk 0:00:08]} 26... Bf3 {[%clk 0:00:14.9]} 27. Rd8+ {[%clk 0:00:06.9]} 27...
Bf8 {[%clk 0:00:15.4]} 28. Bd4+ {[%clk 0:00:07]} 1-0

[Event "*** Titled Tuesday Blitz"]
[Site "Chess.com"]
[Date "2020.04.21"]
[Round "8"]
[White "PavlovDanila"]
[Black "Gennady_Kozlov"]
[Result "1-0"]
[WhiteElo "2748"]
[BlackElo "2574"]
[TimeControl "180+1"]
[EndTime "11:38:29 PDT"]
[Termination "PavlovDanila won by resignation"]

1. e4 {[%clk 0:03:00.9]} 1... e6 {[%clk 0:02:59.8]} 2. d4 {[%clk 0:03:00.5]}
2... d5 {[%clk 0:03:00.4]} 3. Nc3 {[%clk 0:03:01.4]} 3... Nf6 {[%clk 0:03:00]}
4. Bg5 {[%clk 0:03:00.9]} 4... Be7 {[%clk 0:03:00.4]} 5. e5 {[%clk 0:03:01.2]}
5... Nfd7 {[%clk 0:03:01]} 6. h4 {[%clk 0:03:01.2]} 6... Nc6 {[%clk 0:03:00.7]}
7. Bxe7 {[%clk 0:02:54.9]} 7... Qxe7 {[%clk 0:03:00.2]} 8. f4 {[%clk 0:02:54]}
8... Nb6 {[%clk 0:02:59.5]} 9. Nf3 {[%clk 0:02:52.8]} 9... Bd7 {[%clk
0:02:59.4]} 10. Qd2 {[%clk 0:02:52.9]} 10... f6 {[%clk 0:02:59.6]} 11. O-O-O
{[%clk 0:02:43.4]} 11... O-O-O {[%clk 0:02:59.4]} 12. g4 {[%clk 0:02:42]} 12...
h5 {[%clk 0:02:58]} 13. exf6 {[%clk 0:02:28.1]} 13... gxf6 {[%clk 0:02:58.9]}
14. g5 {[%clk 0:02:28]} 14... Rdf8 {[%clk 0:02:58.1]} 15. Qe3 {[%clk 0:02:20.8]}
15... Qd6 {[%clk 0:02:54.3]} 16. Nb5 {[%clk 0:02:14.7]} 16... Qb4 {[%clk
0:02:53.6]} 17. a3 {[%clk 0:02:02.3]} 17... Qe7 {[%clk 0:02:52.9]} 18. Bd3
{[%clk 0:01:56.9]} 18... a6 {[%clk 0:02:47.5]} 19. Nc3 {[%clk 0:01:57]} 19...
Na5 {[%clk 0:02:46.5]} 20. Nd2 {[%clk 0:01:54.8]} 20... Qd6 {[%clk 0:02:44.6]}
21. Rdf1 {[%clk 0:01:51.6]} 21... f5 {[%clk 0:02:36.3]} 22. Rhg1 {[%clk
0:01:49.3]} 22... Rfg8 {[%clk 0:02:33.5]} 23. Qe5 {[%clk 0:01:48.8]} 23... Be8
{[%clk 0:02:26.4]} 24. Re1 {[%clk 0:01:45]} 24... Bd7 {[%clk 0:02:22.9]} 25. Qe3
{[%clk 0:01:21.9]} 25... Nc6 {[%clk 0:02:21.2]} 26. Nf3 {[%clk 0:01:20.8]} 26...
Ne7 {[%clk 0:02:11.3]} 27. Ne5 {[%clk 0:01:20.6]} 27... Be8 {[%clk 0:02:11.8]}
28. Ne2 {[%clk 0:01:14.4]} 28... Kb8 {[%clk 0:02:11]} 29. Ng3 {[%clk 0:01:13.3]}
29... Ka7 {[%clk 0:02:10.2]} 30. Be2 {[%clk 0:01:12.2]} 30... Na4 {[%clk
0:02:07.4]} 31. Qb3 {[%clk 0:01:05.4]} 31... c5 {[%clk 0:02:04.1]} 32. dxc5
{[%clk 0:00:57.7]} 32... Nxc5 {[%clk 0:02:03.3]} 33. Qe3 {[%clk 0:00:56.7]}
33... d4 {[%clk 0:01:34.3]} 34. Qf2 {[%clk 0:00:56.5]} 34... Ng6 {[%clk
0:01:21.1]} 35. Nxg6 {[%clk 0:00:52.7]} 35... Bxg6 {[%clk 0:01:19.6]} 36. Rd1
{[%clk 0:00:52.6]} 36... Rd8 {[%clk 0:01:18.9]} 37. c3 {[%clk 0:00:52.6]} 37...
Qc6 {[%clk 0:01:09.6]} 38. Bf3 {[%clk 0:00:47.2]} 38... Qb5 {[%clk 0:01:04.6]}
39. Ne2 {[%clk 0:00:37.2]} 39... dxc3 {[%clk 0:00:46.7]} 40. Nxc3 {[%clk
0:00:36.7]} 40... Qc4 {[%clk 0:00:43.4]} 41. Be2 {[%clk 0:00:36]} 41... Qb3
{[%clk 0:00:24.7]} 42. Qxc5+ {[%clk 0:00:34.3]} 42... Kb8 {[%clk 0:00:25.4]} 43.
Qb4 {[%clk 0:00:32]} 1-0

[Event "*** Titled Tuesday Blitz"]
[Site "Chess.com"]
[Date "2020.04.21"]
[Round "8"]
[White "LiemLe"]
[Black "exoticprincess"]
[Result "1-0"]
[WhiteElo "3007"]
[BlackElo "2856"]
[TimeControl "180+1"]
[EndTime "11:38:35 PDT"]
[Termination "LiemLe won by resignation"]

1. d4 {[%clk 0:03:00.9]} 1... c6 {[%clk 0:03:00.9]} 2. c4 {[%clk 0:02:58.9]}
2... d5 {[%clk 0:03:01.8]} 3. Nf3 {[%clk 0:02:59.5]} 3... Nf6 {[%clk 0:03:01.9]}
4. g3 {[%clk 0:02:59.3]} 4... Bg4 {[%clk 0:03:00.8]} 5. Ne5 {[%clk 0:02:59]}
5... e6 {[%clk 0:03:00.2]} 6. Nxg4 {[%clk 0:02:51.9]} 6... Nxg4 {[%clk
0:03:00.9]} 7. e4 {[%clk 0:02:52.6]} 7... Nf6 {[%clk 0:03:00.3]} 8. e5 {[%clk
0:02:52.4]} 8... Bb4+ {[%clk 0:02:59.1]} 9. Bd2 {[%clk 0:02:46.5]} 9... Bxd2+
{[%clk 0:02:55]} 10. Nxd2 {[%clk 0:02:47.4]} 10... Nfd7 {[%clk 0:02:55.6]} 11.
cxd5 {[%clk 0:02:35.3]} 11... cxd5 {[%clk 0:02:55]} 12. Bd3 {[%clk 0:02:31.1]}
12... Nc6 {[%clk 0:02:54.9]} 13. Nf3 {[%clk 0:02:30.9]} 13... Qb6 {[%clk
0:02:50.6]} 14. Bc2 {[%clk 0:02:26]} 14... g5 {[%clk 0:02:47.6]} 15. h3 {[%clk
0:02:21.3]} 15... h5 {[%clk 0:02:45.5]} 16. Ba4 {[%clk 0:02:13.6]} 16... Qb4+
{[%clk 0:02:37.6]} 17. Kf1 {[%clk 0:02:12.4]} 17... b5 {[%clk 0:02:37.8]} 18.
Bb3 {[%clk 0:02:02.4]} 18... Ke7 {[%clk 0:02:38]} 19. a3 {[%clk 0:01:59.7]}
19... Qa5 {[%clk 0:02:36.8]} 20. Qc1 {[%clk 0:02:00.3]} 20... Qb6 {[%clk
0:02:29.7]} 21. Qxg5+ {[%clk 0:02:00.1]} 21... Kf8 {[%clk 0:02:29.8]} 22. Qf4
{[%clk 0:01:57.2]} 22... Re8 {[%clk 0:02:29.1]} 23. Rc1 {[%clk 0:01:52.5]} 23...
a5 {[%clk 0:02:20.9]} 24. Kg2 {[%clk 0:01:50.2]} 24... a4 {[%clk 0:02:20.8]} 25.
Bc2 {[%clk 0:01:50.2]} 25... Re7 {[%clk 0:02:16.5]} 26. Bd3 {[%clk 0:01:44.4]}
26... Ke8 {[%clk 0:02:16.5]} 27. Rc3 {[%clk 0:01:39.2]} 27... Ndb8 {[%clk
0:02:16.5]} 28. Rhc1 {[%clk 0:01:35.7]} 28... Kd7 {[%clk 0:02:16.5]} 29. Rc5
{[%clk 0:01:35.5]} 29... Na7 {[%clk 0:02:16.2]} 30. Qf6 {[%clk 0:01:28.1]} 30...
Rhe8 {[%clk 0:02:16.4]} 31. Ng5 {[%clk 0:01:26.6]} 31... Na6 {[%clk 0:02:15.6]}
32. Nxf7 {[%clk 0:01:07.5]} 32... Nxc5 {[%clk 0:02:15.4]} 33. Rxc5 {[%clk
0:01:08.4]} 33... Nc6 {[%clk 0:02:13.1]} 34. Bxb5 {[%clk 0:01:07.1]} 34... Rc8
{[%clk 0:02:11.4]} 35. Nd6 {[%clk 0:01:06.4]} 35... Rc7 {[%clk 0:02:11.5]} 36.
Bxa4 {[%clk 0:00:59.1]} 36... Qa6 {[%clk 0:02:10.4]} 37. Bb5 {[%clk 0:00:58.9]}
37... Qb6 {[%clk 0:02:10.2]} 38. a4 {[%clk 0:00:59.3]} 38... Rh7 {[%clk
0:02:06]} 39. a5 {[%clk 0:00:55.7]} 39... Qb8 {[%clk 0:02:04.1]} 40. Qg6 {[%clk
0:00:53.3]} 40... Re7 {[%clk 0:02:03.2]} 41. Qc2 {[%clk 0:00:52.3]} 41... Qa8
{[%clk 0:02:03.7]} 42. b4 {[%clk 0:00:52.1]} 42... Rg7 {[%clk 0:02:00.8]} 43.
Ba4 {[%clk 0:00:50.6]} 43... h4 {[%clk 0:01:44.4]} 44. g4 {[%clk 0:00:45.8]}
44... Rg8 {[%clk 0:00:22]} 45. Qh7+ {[%clk 0:00:42.4]} 1-0

[Event "*** Titled Tuesday Blitz"]
[Site "Chess.com"]
[Date "2020.04.21"]
[Round "8"]
[White "shyam"]
[Black "plumalka"]
[Result "1-0"]
[WhiteElo "2658"]
[BlackElo "2442"]
[TimeControl "180+1"]
[EndTime "11:38:36 PDT"]
[Termination "shyam won by resignation"]

1. d4 {[%clk 0:03:00.9]} 1... Nf6 {[%clk 0:02:59.4]} 2. c4 {[%clk 0:03:01.2]}
2... c5 {[%clk 0:02:59.1]} 3. d5 {[%clk 0:03:00.2]} 3... b5 {[%clk 0:02:59.5]}
4. Qc2 {[%clk 0:02:57.6]} 4... bxc4 {[%clk 0:02:59]} 5. e4 {[%clk 0:02:57.9]}
5... d6 {[%clk 0:02:58.9]} 6. Bxc4 {[%clk 0:02:58.1]} 6... g6 {[%clk 0:02:59.3]}
7. b3 {[%clk 0:02:58.7]} 7... Bg7 {[%clk 0:02:59]} 8. Bb2 {[%clk 0:02:59.4]}
8... O-O {[%clk 0:02:59]} 9. Nd2 {[%clk 0:03:00]} 9... Ba6 {[%clk 0:02:59.1]}
10. Ngf3 {[%clk 0:03:00.2]} 10... Bxc4 {[%clk 0:02:58.5]} 11. Nxc4 {[%clk
0:03:01.1]} 11... Nbd7 {[%clk 0:02:55.3]} 12. O-O {[%clk 0:03:01.2]} 12... Nb6
{[%clk 0:02:51]} 13. Rad1 {[%clk 0:02:54.1]} 13... Nxc4 {[%clk 0:02:49.7]} 14.
Qxc4 {[%clk 0:02:55]} 14... a5 {[%clk 0:02:45.7]} 15. e5 {[%clk 0:02:54.1]}
15... Nd7 {[%clk 0:02:26]} 16. Rfe1 {[%clk 0:02:54.4]} 16... a4 {[%clk
0:02:21.4]} 17. bxa4 {[%clk 0:02:40.9]} 17... Nb6 {[%clk 0:02:17.6]} 18. Qc2
{[%clk 0:02:40.9]} 18... Nxa4 {[%clk 0:02:16.5]} 19. Ba1 {[%clk 0:02:37.1]}
19... Qa5 {[%clk 0:02:04]} 20. h4 {[%clk 0:02:30.2]} 20... Nb6 {[%clk
0:01:54.1]} 21. exd6 {[%clk 0:02:28.3]} 21... exd6 {[%clk 0:01:51.6]} 22. Bxg7
{[%clk 0:02:28.3]} 22... Kxg7 {[%clk 0:01:52.5]} 23. h5 {[%clk 0:02:27.9]} 23...
Rfe8 {[%clk 0:01:31]} 24. Rxe8 {[%clk 0:02:13.5]} 24... Rxe8 {[%clk 0:01:31.9]}
25. Qb2+ {[%clk 0:02:06.3]} 25... f6 {[%clk 0:01:29]} 26. h6+ {[%clk 0:02:05.5]}
26... Kf7 {[%clk 0:01:26.8]} 27. Ng5+ {[%clk 0:02:05.3]} 27... Ke7 {[%clk
0:01:06.8]} 28. Nxh7 {[%clk 0:02:03]} 28... Nd7 {[%clk 0:01:02.9]} 29. Qb1
{[%clk 0:01:57.2]} 29... Kf7 {[%clk 0:00:50]} 30. Qb2 {[%clk 0:01:36.6]} 30...
Re1+ {[%clk 0:00:43.4]} 31. Rxe1 {[%clk 0:01:37]} 31... Qxe1+ {[%clk 0:00:44.3]}
32. Kh2 {[%clk 0:01:37.9]} 32... Qe5+ {[%clk 0:00:42.6]} 33. Qxe5 {[%clk
0:01:37.7]} 33... Nxe5 {[%clk 0:00:42.6]} 34. Kg3 {[%clk 0:01:23.8]} 34... g5
{[%clk 0:00:30.4]} 35. f4 {[%clk 0:01:20.1]} 35... c4 {[%clk 0:00:28.5]} 36.
fxe5 {[%clk 0:01:18.4]} 36... c3 {[%clk 0:00:27.7]} 37. Nxg5+ {[%clk 0:00:42.3]}
37... fxg5 {[%clk 0:00:26.1]} 38. e6+ {[%clk 0:00:42.8]} 38... Kg6 {[%clk
0:00:16.4]} 39. e7 {[%clk 0:00:42.6]} 39... Kf7 {[%clk 0:00:15.4]} 40. h7 {[%clk
0:00:42.7]} 40... c2 {[%clk 0:00:15.2]} 41. e8=Q+ {[%clk 0:00:41.8]} 41... Kxe8
{[%clk 0:00:14.5]} 42. h8=Q+ {[%clk 0:00:42.2]} 42... Kf7 {[%clk 0:00:14.3]} 43.
Qc3 {[%clk 0:00:42.9]} 43... c1=Q {[%clk 0:00:13.9]} 44. Qxc1 {[%clk 0:00:43.2]}
1-0

[Event "*** Titled Tuesday Blitz"]
[Site "Chess.com"]
[Date "2020.04.21"]
[Round "8"]
[White "Chessalary"]
[Black "LifeIsAllAboutChess23"]
[Result "0-1"]
[WhiteElo "2238"]
[BlackElo "2037"]
[TimeControl "180+1"]
[EndTime "11:38:37 PDT"]
[Termination "LifeIsAllAboutChess23 won by resignation"]

1. e4 {[%clk 0:03:00.9]} 1... b6 {[%clk 0:02:59.5]} 2. d4 {[%clk 0:03:00]} 2...
Bb7 {[%clk 0:02:59.5]} 3. Nc3 {[%clk 0:03:00]} 3... e6 {[%clk 0:02:59.9]} 4. Nf3
{[%clk 0:02:59.3]} 4... Nf6 {[%clk 0:02:59.1]} 5. Bd3 {[%clk 0:02:57]} 5... Bb4
{[%clk 0:02:58.3]} 6. e5 {[%clk 0:02:51.6]} 6... Ne4 {[%clk 0:02:55.5]} 7. Bxe4
{[%clk 0:02:48.1]} 7... Bxe4 {[%clk 0:02:56.4]} 8. O-O {[%clk 0:02:48.5]} 8...
Bxc3 {[%clk 0:02:55.8]} 9. bxc3 {[%clk 0:02:49.4]} 9... O-O {[%clk 0:02:55.8]}
10. Re1 {[%clk 0:02:49]} 10... Bb7 {[%clk 0:02:54.6]} 11. Bg5 {[%clk 0:02:47.2]}
11... f6 {[%clk 0:02:54]} 12. exf6 {[%clk 0:02:46.3]} 12... gxf6 {[%clk
0:02:54.9]} 13. Bh6 {[%clk 0:02:46.7]} 13... Rf7 {[%clk 0:02:51.8]} 14. Qc1
{[%clk 0:02:39.1]} 14... Nc6 {[%clk 0:02:50.6]} 15. Qf4 {[%clk 0:02:38.6]} 15...
Ne7 {[%clk 0:02:48.7]} 16. Qg3+ {[%clk 0:02:35.6]} 16... Kh8 {[%clk 0:02:47.5]}
17. Ne5 {[%clk 0:02:35.6]} 17... fxe5 {[%clk 0:02:44.2]} 18. Qxe5+ {[%clk
0:02:31.3]} 18... Kg8 {[%clk 0:02:44.1]} 19. Re3 {[%clk 0:02:27]} 19... Nf5
{[%clk 0:02:39.9]} 20. Rh3 {[%clk 0:01:09.6]} 20... Qf6 {[%clk 0:02:30.4]} 21.
Qxf6 {[%clk 0:01:04]} 21... Rxf6 {[%clk 0:02:31.3]} 22. Bc1 {[%clk 0:01:00.5]}
22... Rg6 {[%clk 0:02:30.9]} 23. f3 {[%clk 0:00:58.2]} 23... Nd6 {[%clk
0:02:21.8]} 24. Rg3 {[%clk 0:00:53]} 24... Rf8 {[%clk 0:02:18.9]} 25. Rxg6+
{[%clk 0:00:45.5]} 25... hxg6 {[%clk 0:02:17.8]} 26. h4 {[%clk 0:00:44.9]} 26...
Rf7 {[%clk 0:02:14.3]} 27. a4 {[%clk 0:00:41.2]} 27... a5 {[%clk 0:02:07.6]} 28.
Bg5 {[%clk 0:00:37.1]} 28... Bc6 {[%clk 0:02:05.5]} 29. Bd8 {[%clk 0:00:32.7]}
29... Ne8 {[%clk 0:02:02.1]} 30. c4 {[%clk 0:00:33.1]} 30... d5 {[%clk
0:02:01.1]} 31. cxd5 {[%clk 0:00:32.2]} 31... exd5 {[%clk 0:01:59]} 32. Bg5
{[%clk 0:00:32.6]} 32... Nd6 {[%clk 0:01:58.6]} 33. Bd8 {[%clk 0:00:29]} 33...
Nc4 {[%clk 0:01:57.8]} 34. Kf2 {[%clk 0:00:25.9]} 34... Nb2 {[%clk 0:01:57.5]}
35. Ke2 {[%clk 0:00:25.6]} 35... Bxa4 {[%clk 0:01:51.8]} 36. Bg5 {[%clk
0:00:25.9]} 36... Bb5+ {[%clk 0:01:49.8]} 37. Kd2 {[%clk 0:00:22.5]} 37... Nc4+
{[%clk 0:01:49.6]} 38. Kc3 {[%clk 0:00:21.3]} 38... c5 {[%clk 0:01:46.3]} 39.
Re1 {[%clk 0:00:21.2]} 39... cxd4+ {[%clk 0:01:44.9]} 40. Kxd4 {[%clk
0:00:17.9]} 40... Rd7 {[%clk 0:01:30.9]} 41. g4 {[%clk 0:00:15.3]} 41... a4
{[%clk 0:01:28]} 42. f4 {[%clk 0:00:14.6]} 42... a3 {[%clk 0:01:28]} 43. Kc3
{[%clk 0:00:11.8]} 43... d4+ {[%clk 0:01:26.5]} 44. Kb4 {[%clk 0:00:09.1]} 44...
Ba6 {[%clk 0:01:21.2]} 45. f5 {[%clk 0:00:09.4]} 45... gxf5 {[%clk 0:01:19]} 46.
gxf5 {[%clk 0:00:10.3]} 46... a2 {[%clk 0:01:17.6]} 47. f6 {[%clk 0:00:10.3]}
47... Ne3 {[%clk 0:01:15.6]} 0-1

[Event "*** Titled Tuesday Blitz"]
[Site "Chess.com"]
[Date "2020.04.21"]
[Round "8"]
[White "joppie2"]
[Black "Azatnew"]
[Result "1/2-1/2"]
[WhiteElo "2926"]
[BlackElo "2787"]
[TimeControl "180+1"]
[EndTime "11:38:38 PDT"]
[Termination "Game drawn by repetition"]

1. e4 {[%clk 0:03:00.9]} 1... e6 {[%clk 0:02:59.5]} 2. d4 {[%clk 0:02:59.9]}
2... d5 {[%clk 0:02:59.9]} 3. Nc3 {[%clk 0:03:00.6]} 3... Bb4 {[%clk 0:02:59.6]}
4. Bd3 {[%clk 0:02:59.2]} 4... dxe4 {[%clk 0:02:55.7]} 5. Bxe4 {[%clk
0:03:00.1]} 5... Nf6 {[%clk 0:02:56.1]} 6. Bf3 {[%clk 0:03:00.7]} 6... O-O
{[%clk 0:02:55.8]} 7. Ne2 {[%clk 0:03:00.3]} 7... c6 {[%clk 0:02:50.1]} 8. O-O
{[%clk 0:02:57.3]} 8... Nbd7 {[%clk 0:02:50.4]} 9. Ne4 {[%clk 0:02:55.5]} 9...
Nxe4 {[%clk 0:02:48.3]} 10. Bxe4 {[%clk 0:02:56.4]} 10... Nf6 {[%clk 0:02:48.6]}
11. Bf3 {[%clk 0:02:53.2]} 11... Qc7 {[%clk 0:02:46.9]} 12. Bf4 {[%clk
0:02:51.9]} 12... Bd6 {[%clk 0:02:46.9]} 13. Qd2 {[%clk 0:02:46.4]} 13... Rd8
{[%clk 0:02:47]} 14. Bxd6 {[%clk 0:02:45.5]} 14... Qxd6 {[%clk 0:02:46]} 15. Qe3
{[%clk 0:02:39]} 15... Nd5 {[%clk 0:02:43.6]} 16. Qb3 {[%clk 0:02:38.1]} 16...
Nf4 {[%clk 0:02:29.3]} 17. Nxf4 {[%clk 0:02:33.1]} 17... Qxf4 {[%clk 0:02:30.2]}
18. c3 {[%clk 0:02:33.5]} 18... Qc7 {[%clk 0:02:30.1]} 19. Rad1 {[%clk 0:02:32]}
19... Bd7 {[%clk 0:02:30.4]} 20. Rfe1 {[%clk 0:02:31.6]} 20... Be8 {[%clk
0:02:30.6]} 21. h4 {[%clk 0:02:31.4]} 21... Rd6 {[%clk 0:02:30.3]} 22. h5 {[%clk
0:02:31.2]} 22... Rad8 {[%clk 0:02:30.3]} 23. h6 {[%clk 0:02:31.5]} 23... g6
{[%clk 0:02:29.3]} 24. Qc4 {[%clk 0:02:27.3]} 24... Qe7 {[%clk 0:02:27.9]} 25.
Qc5 {[%clk 0:02:26.4]} 25... b6 {[%clk 0:02:24.2]} 26. Qe5 {[%clk 0:02:25.6]}
26... Qf8 {[%clk 0:02:21.5]} 27. Qf4 {[%clk 0:02:22.5]} 27... f6 {[%clk
0:02:08]} 28. Bg4 {[%clk 0:02:16.9]} 28... g5 {[%clk 0:02:06.4]} 29. Qg3 {[%clk
0:02:14.4]} 29... Bf7 {[%clk 0:02:02.2]} 30. Qh2 {[%clk 0:02:06.6]} 30... f5
{[%clk 0:01:27.8]} 31. Bh5 {[%clk 0:02:06.5]} 31... Bxh5 {[%clk 0:01:24.4]} 32.
Qxh5 {[%clk 0:02:06.1]} 32... Qf6 {[%clk 0:01:25]} 33. Re5 {[%clk 0:02:03.6]}
33... c5 {[%clk 0:01:16.8]} 34. Rde1 {[%clk 0:02:02.9]} 34... cxd4 {[%clk
0:01:16.7]} 35. Rxe6 {[%clk 0:02:02.6]} 35... Rxe6 {[%clk 0:01:11.7]} 36. Rxe6
{[%clk 0:02:03.5]} 36... Qxe6 {[%clk 0:01:08.6]} 37. Qxg5+ {[%clk 0:02:03.8]}
37... Kf7 {[%clk 0:01:09.2]} 38. Qxd8 {[%clk 0:02:03.1]} 38... Qe1+ {[%clk
0:00:50.4]} 39. Kh2 {[%clk 0:02:02.3]} 39... Qe5+ {[%clk 0:00:46.8]} 40. g3
{[%clk 0:01:45.7]} 40... dxc3 {[%clk 0:00:47.1]} 41. Qd7+ {[%clk 0:01:26.7]}
41... Kg6 {[%clk 0:00:42.8]} 42. bxc3 {[%clk 0:01:08.5]} 42... Qxc3 {[%clk
0:00:37.2]} 43. Qxa7 {[%clk 0:01:02.5]} 43... Qd4 {[%clk 0:00:36.5]} 44. Kh3
{[%clk 0:00:56.2]} 44... Qg4+ {[%clk 0:00:26.5]} 45. Kg2 {[%clk 0:00:54.8]}
45... Qe4+ {[%clk 0:00:26.9]} 46. Kf1 {[%clk 0:00:55.3]} 46... Qb1+ {[%clk
0:00:21.3]} 47. Ke2 {[%clk 0:00:53.1]} 47... Qc2+ {[%clk 0:00:21.6]} 48. Ke1
{[%clk 0:00:49.2]} 48... Qc1+ {[%clk 0:00:21.6]} 49. Ke2 {[%clk 0:00:49.8]}
49... Qc2+ {[%clk 0:00:22.1]} 50. Ke3 {[%clk 0:00:48.7]} 50... Qc3+ {[%clk
0:00:22.3]} 51. Ke2 {[%clk 0:00:46.8]} 51... Qc2+ {[%clk 0:00:22.7]} 1/2-1/2